fUST/lending_fUST_20250828
["ID","MTS","AMOUNT","RATE_DAILY","PERIOD"]
[381808965,1756356679604,-480.0,0.0002121,2]
[381808966,1756356679616,-480.0,0.0002121,2]
[381808967,1756356679626,-480.0,0.0002121,2]
[381808968,1756356679635,-480.0,0.0002121,2]
[381808969,1756356679645,-480.0,0.0002121,2]
[381808970,1756356679655,-480.0,0.0002121,2]
[381808971,1756356679664,-480.0,0.0002121,2]
[381808972,1756356679673,-325.04078652,0.0002121,2]
[381808973,1756356679683,-480.0,0.0002121,2]
[381808974,1756356679693,-480.0,0.0002121,2]
[381808975,1756356679703,-617.45,0.0002121,2]
[381808976,1756356679713,-570.55,0.0002121,2]
[381808977,1756356679879,-480.0,0.0002121,2]
[381808978,1756356679896,-616.29,0.0002121,2]
[381808979,1756356679905,-1200.27,0.0002121,2]
[381808980,1756356679915,-480.0,0.0002121,2]
[381808981,1756356679924,-196.47053413,0.0002121,2]
[381808982,1756356679934,-480.0,0.0002121,2]
[381808983,1756356679943,-601.73,0.0002121,2]
[381808984,1756356679952,-480.0,0.0002121,2]
[381808985,1756356679962,-480.0,0.0002121,2]
[381808986,1756356679971,-480.0,0.0002121,2]
[381808987,1756356679980,-1428.02,0.0002121,2]
[381808988,1756356679989,-180.25260663,0.0002121,2]
[381808989,1756356679998,-480.0,0.0002121,2]
[381808990,1756356680008,-480.0,0.0002121,2]
[381808991,1756356680018,-2722.72,0.0002121,2]
[381808992,1756356680027,-480.0,0.0002121,2]
[381808993,1756356680036,-480.0,0.0002121,2]
[381808994,1756356680045,-482.07105521,0.0002121,2]
[381808995,1756356680055,-480.0,0.0002121,2]
[381808996,1756356680064,-480.0,0.0002121,2]
[381808997,1756356680073,-480.0,0.0002121,2]
[381808998,1756356680084,-480.0,0.0002121,2]
[381808999,1756356680093,-480.0,0.0002121,2]
[381809000,1756356680102,-4245.17,0.0002121,2]
[381809001,1756356680114,-480.0,0.0002121,2]
[381809002,1756356680124,-480.0,0.0002121,2]
[381809003,1756356680133,-480.0,0.0002121,2]
[381809004,1756356680142,-480.0,0.0002121,2]
[381809005,1756356680152,-483.06525965,0.0002121,2]
[381809006,1756356680162,-382.11898513,0.0002121,2]
[381809007,1756356680171,-480.0,0.0002121,2]
[381809008,1756356680182,-480.0,0.0002121,2]
[381809009,1756356680192,-541.84,0.0002121,2]
[381809010,1756356680202,-480.0,0.0002121,2]
[381809011,1756356680211,-480.0,0.0002121,2]
[381809012,1756356680222,-480.0,0.0002121,2]
[381809013,1756356680231,-480.0,0.0002121,2]
[381809014,1756356680241,-545.08377483,0.0002121,2]
[381809015,1756356680251,-568.72,0.0002121,2]
[381809016,1756356680261,-326.95880518,0.0002121,2]
[381809017,1756356680271,-1881.85,0.0002121,2]
[381809018,1756356680280,-480.0,0.0002121,2]
[381809019,1756356680290,-549.63060533,0.0002121,2]
[381809020,1756356680299,-480.0,0.0002121,2]
[381809021,1756356680309,-662.5,0.0002121,2]
[381809022,1756356680318,-554.0,0.0002121,2]
[381809023,1756356680328,-480.0,0.0002121,2]
[381809024,1756356680338,-480.0,0.0002121,2]
[381809025,1756356680348,-480.0,0.00021212,2]
[381809026,1756356680361,-2673.38,0.00021212,2]
[381809027,1756356680371,-3486.98,0.00021212,2]
[381809028,1756356680381,-1278.52,0.00021212,2]
[381809029,1756356680390,-562.42,0.00021212,2]
[381809030,1756356680399,-1660.3,0.00021212,2]
[381809031,1756356680409,-941.02,0.00021212,2]
[381809032,1756356680418,-811.95,0.00021212,2]
[381809033,1756356680428,-1515.77,0.00021212,2]
[381809034,1756356680438,-592.54,0.00021212,2]
[381809035,1756356680448,-760.29,0.00021212,2]
[381809036,1756356680458,-1016.7,0.00021212,2]
[381809037,1756356680468,-480.0,0.00021212,2]
[381809038,1756356680478,-480.0,0.00021212,2]
[381809039,1756356680488,-530.32,0.00021212,2]
[381809040,1756356680497,-1850.6,0.00021212,2]
[381809041,1756356680507,-1997.18,0.00021212,2]
[381809042,1756356680519,-1812.86,0.00021212,2]
[381809043,1756356680528,-542.84,0.00021212,2]
[381809044,1756356680538,-501.0,0.00021221,2]
[381809045,1756356680547,-176.50708846,0.00021232,2]
[381809046,1756356680556,-181.05516357,0.0002124,2]
[381809047,1756356680566,-949.659,0.00021249,2]
[381809048,1756356680576,-3496.73,0.00021262,2]
[381809049,1756356680585,-100000.0,0.00021263,2]
[381809050,1756356680597,-1500.0,0.00021268,2]
[381809051,1756356680609,-1500.0,0.00021268,2]
[381809052,1756356680619,-1500.0,0.00021268,2]
[381809053,1756356680629,-367.2886646,0.00021268,2]
[381809054,1756356680638,-1500.0,0.00021268,2]
[381809055,1756356680648,-1503.61448562,0.00021268,2]
[381809056,1756356680658,-1500.0,0.00021268,2]
[381809057,1756356680667,-1500.0,0.00021268,2]
[381809058,1756356680676,-1500.0,0.00021268,2]
[381809059,1756356680685,-480.0,0.0002128,2]
[381809060,1756356680694,-512.47,0.0002128,2]
[381809061,1756356680704,-480.0,0.0002128,2]
[381809062,1756356680713,-708.4,0.0002128,2]
[381809063,1756356680723,-1021.12,0.0002128,2]
[381809064,1756356680732,-1536.3,0.0002128,2]
[381809065,1756356680741,-853.77,0.0002128,2]
[381809066,1756356680750,-584.77,0.0002128,2]
[381809067,1756356680759,-480.0,0.0002128,2]
[381809068,1756356680768,-400.0,0.0002128,2]
[381809069,1756356680778,-545.28,0.0002128,2]
[381809070,1756356680787,-686.06,0.0002128,2]
[381809071,1756356680797,-480.0,0.0002128,2]
[381809072,1756356680806,-694.72,0.0002128,2]
[381809073,1756356680815,-480.0,0.0002128,2]
[381809074,1756356680826,-480.0,0.0002128,2]
[381809075,1756356680835,-1147.93,0.0002128,2]
[381809076,1756356680844,-677.79,0.0002128,2]
[381809077,1756356680853,-1123.67,0.0002128,2]
[381809078,1756356680865,-544.12,0.0002128,2]
[381809079,1756356680875,-776.24,0.0002128,2]
[381809080,1756356680884,-480.0,0.0002128,2]
[381809081,1756356680894,-518.51,0.0002128,2]
[381809082,1756356680903,-498.32,0.0002128,2]
[381809083,1756356680912,-1614.03,0.0002128,2]
[381809084,1756356680922,-997.72,0.0002128,2]
[381809085,1756356680931,-586.07,0.0002128,2]
[381809086,1756356680940,-480.0,0.0002128,2]
[381809087,1756356680950,-487.54,0.0002128,2]
[381809088,1756356680959,-535.44,0.0002128,2]
[381809089,1756356680969,-687.49,0.0002128,2]
[381809090,1756356680980,-783.92,0.0002128,2]
[381809091,1756356680991,-855.7,0.0002128,2]
[381809092,1756356681001,-480.0,0.0002128,2]
[381809093,1756356681011,-501.01,0.0002128,2]
[381809094,1756356681022,-543.48,0.0002128,2]
[381809095,1756356681031,-1003.05,0.0002128,2]
[381809096,1756356681041,-1200.0,0.0002128,2]
[381809097,1756356681051,-480.0,0.0002128,2]
[381809098,1756356681060,-1135.77,0.0002128,2]
[381809099,1756356681070,-921.25,0.0002128,2]
[381809100,1756356681079,-736.35,0.0002128,2]
[381809101,1756356681088,-480.0,0.0002128,2]
[381809102,1756356681098,-489.03,0.0002128,2]
[381809103,1756356681110,-480.0,0.0002128,2]
[381809104,1756356681120,-1501.6,0.0002128,2]
[381809105,1756356681130,-480.0,0.0002128,2]
[381809106,1756356681139,-586.28,0.0002128,2]
[381809107,1756356681149,-274.13897531,0.0002128,2]
[381809108,1756356681159,-687.31,0.0002128,2]
[381809109,1756356681169,-490.1,0.0002128,2]
[381809110,1756356681178,-543.14,0.0002128,2]
[381809111,1756356681189,-1457.75,0.0002128,2]
[381809112,1756356681198,-480.0,0.0002128,2]
[381809113,1756356681207,-1828.87,0.0002128,2]
[381809114,1756356681216,-480.0,0.0002128,2]
[381809115,1756356681226,-480.0,0.0002128,2]
[381809116,1756356681236,-480.0,0.0002128,2]
[381809117,1756356681246,-503.14,0.0002128,2]
[381809118,1756356681256,-480.0,0.0002128,2]
[381809119,1756356681266,-480.0,0.0002128,2]
[381809120,1756356681276,-749.19,0.0002128,2]
[381809121,1756356681286,-1023.93,0.0002128,2]
[381809122,1756356681296,-4065.99,0.0002128,2]
[381809123,1756356681306,-480.0,0.0002128,2]
[381809124,1756356681315,-571.63,0.0002128,2]
[381809125,1756356681325,-445.555411,0.0002128,2]
[381809126,1756356681335,-1376.72,0.0002128,2]
[381809127,1756356681344,-480.0,0.0002128,2]
[381809128,1756356681354,-480.0,0.0002128,2]
[381809129,1756356681367,-2297.07,0.0002128,2]
[381809130,1756356681376,-799.5,0.0002128,2]
[381809131,1756356681386,-480.0,0.0002128,2]
[381809132,1756356681396,-633.53,0.0002128,2]
[381809133,1756356681406,-480.0,0.0002128,2]
[381809134,1756356681415,-434.58168498,0.0002128,2]
[381809135,1756356681424,-480.0,0.0002128,2]
[381809136,1756356681434,-480.0,0.0002128,2]
[381809137,1756356681443,-480.0,0.0002128,2]
[381809138,1756356681453,-1204.91,0.0002128,2]
[381809139,1756356681462,-480.0,0.0002128,2]
[381809140,1756356681471,-664.77,0.0002128,2]
[381809141,1756356681481,-691.19,0.0002128,2]
[381809142,1756356681490,-480.0,0.00021284,2]
[381809143,1756356681500,-3421.67,0.00021284,2]
[381809144,1756356681510,-2533.07,0.00021284,2]
[381809145,1756356681520,-480.0,0.00021284,2]
[381809146,1756356681532,-480.0,0.00021284,2]
[381809147,1756356681542,-480.0,0.00021284,2]
[381809148,1756356681552,-480.0,0.00021284,2]
[381809149,1756356681562,-618.76,0.00021284,2]
[381809150,1756356681571,-1162.67,0.00021284,2]
[381809151,1756356681581,-480.0,0.00021284,2]
[381809152,1756356681590,-990.59,0.00021284,2]
[381809153,1756356681600,-339.65514845,0.00021284,2]
[381809154,1756356681611,-5148.52,0.00021284,2]
[381809155,1756356681620,-611.25,0.00021284,2]
[381809156,1756356681629,-2671.32,0.00021284,2]
[381809157,1756356681638,-649.08,0.00021284,2]
[381809158,1756356681647,-5025.34,0.00021284,2]
[381809159,1756356681656,-668.07,0.00021284,2]
[381809160,1756356681666,-1650.5,0.00021284,2]
[381809161,1756356681675,-480.0,0.00021284,2]
[381809162,1756356681684,-480.0,0.00021286,2]
[381809163,1756356681694,-480.0,0.00021286,2]
[381809164,1756356681703,-480.0,0.00021286,2]
[381809165,1756356681712,-480.0,0.00021286,2]
[381809166,1756356681721,-480.0,0.00021286,2]
[381809167,1756356681731,-480.0,0.00021286,2]
[381809168,1756356681740,-480.0,0.00021286,2]
[381809169,1756356681749,-480.0,0.00021286,2]
[381809170,1756356681759,-480.0,0.00021286,2]
[381809171,1756356681768,-480.0,0.00021286,2]
[381809172,1756356681777,-622.73,0.00021286,2]
[381809173,1756356681787,-1146.81,0.00021286,2]
[381809174,1756356681796,-500.14,0.00021286,2]
[381809175,1756356681805,-480.0,0.00021286,2]
[381809176,1756356681814,-480.0,0.00021286,2]
[381809177,1756356681824,-480.0,0.00021286,2]
[381809178,1756356681833,-642.24,0.00021286,2]
[381809179,1756356681842,-480.0,0.00021286,2]
[381809180,1756356681851,-747.48,0.00021286,2]
[381809181,1756356681861,-700.51,0.00021286,2]
[381809182,1756356681869,-480.0,0.00021286,2]
[381809183,1756356681879,-480.0,0.00021286,2]
[381809184,1756356681887,-480.0,0.00021286,2]
[381809185,1756356681897,-480.0,0.00021286,2]
[381809186,1756356681907,-480.0,0.00021286,2]
[381809187,1756356681918,-480.0,0.00021286,2]
[381809188,1756356681928,-610.79,0.00021286,2]
[381809189,1756356681938,-697.37,0.00021286,2]
[381809190,1756356681947,-485.48,0.00021286,2]
[381809191,1756356681957,-480.0,0.00021286,2]
[381809192,1756356681966,-480.0,0.00021286,2]
[381809193,1756356681975,-480.0,0.00021286,2]
[381809194,1756356681984,-499.7,0.00021286,2]
[381809195,1756356681994,-943.25,0.00021286,2]
[381809196,1756356682004,-480.0,0.00021286,2]
[381809197,1756356682014,-701.41,0.00021286,2]
[381809198,1756356682023,-925.93,0.00021286,2]
[381809199,1756356682033,-480.0,0.00021286,2]
[381809200,1756356682042,-480.0,0.00021286,2]
[381809201,1756356682052,-480.0,0.00021286,2]
[381809202,1756356682062,-536.25,0.00021286,2]
[381809203,1756356682071,-845.24,0.00021286,2]
[381809204,1756356682080,-688.62,0.00021286,2]
[381809205,1756356682089,-586.1,0.00021286,2]
[381809206,1756356682099,-480.0,0.00021286,2]
[381809207,1756356682108,-581.67,0.00021286,2]
[381809208,1756356682119,-480.0,0.00021286,2]
[381809209,1756356682128,-480.0,0.00021286,2]
[381809210,1756356682137,-480.0,0.00021286,2]
[381809211,1756356682147,-570.61,0.00021286,2]
[381809212,1756356682156,-1192.99,0.00021286,2]
[381809213,1756356682166,-480.0,0.00021286,2]
[381809214,1756356682175,-782.62,0.00021286,2]
[381809215,1756356682184,-556.25,0.00021286,2]
[381809216,1756356682194,-358.68813693,0.00021286,2]
[381809217,1756356682204,-480.0,0.00021286,2]
[381809218,1756356682213,-883.69,0.00021286,2]
[381809219,1756356682222,-480.0,0.00021286,2]
[381809220,1756356682231,-480.0,0.00021286,2]
[381809221,1756356682241,-480.0,0.00021286,2]
[381809222,1756356682251,-480.0,0.00021286,2]
[381809223,1756356682260,-297.13094542,0.00021286,2]
[381809224,1756356682269,-480.0,0.00021286,2]
[381809225,1756356682279,-480.0,0.00021286,2]
[381809226,1756356682288,-482.33775518,0.00021286,2]
[381809227,1756356682297,-888.61,0.00021286,2]
[381809228,1756356682306,-483.87833042,0.00021286,2]
[381809229,1756356682316,-480.0,0.00021286,2]
[381809230,1756356682325,-929.96,0.00021286,2]
[381809231,1756356682334,-480.0,0.00021286,2]
[381809232,1756356682344,-480.0,0.00021286,2]
[381809233,1756356682353,-480.0,0.00021286,2]
[381809234,1756356682365,-532.14,0.00021286,2]
[381809235,1756356682375,-480.0,0.00021286,2]
[381809236,1756356682384,-480.0,0.00021286,2]
[381809237,1756356682393,-303.04470267,0.00021286,2]
[381809238,1756356682403,-480.0,0.00021286,2]
[381809239,1756356682412,-480.0,0.00021286,2]
[381809240,1756356682422,-480.0,0.00021286,2]
[381809241,1756356682431,-1377.69,0.00021286,2]
[381809242,1756356682441,-480.0,0.00021286,2]
[381809243,1756356682450,-678.55,0.00021286,2]
[381809244,1756356682460,-480.0,0.00021286,2]
[381809245,1756356682469,-601.87,0.00021286,2]
[381809246,1756356682478,-480.0,0.00021286,2]
[381809247,1756356682488,-480.0,0.00021286,2]
[381809248,1756356682497,-480.0,0.00021286,2]
[381809249,1756356682507,-480.0,0.00021286,2]
[381809250,1756356682517,-517.59,0.00021286,2]
[381809251,1756356682528,-480.0,0.00021286,2]
[381809252,1756356682537,-480.0,0.00021286,2]
[381809253,1756356682549,-524.07,0.00021286,2]
[381809254,1756356682559,-480.0,0.00021286,2]
[381809255,1756356682569,-488.41,0.00021286,2]
[381809256,1756356682578,-1224.27,0.00021286,2]
[381809257,1756356682587,-480.0,0.00021286,2]
[381809258,1756356682599,-664.64,0.00021286,2]
[381809259,1756356682611,-481.81904861,0.00021286,2]
[381809260,1756356682620,-892.32,0.00021286,2]
[381809261,1756356682630,-500.0,0.00021286,2]
[381809262,1756356682639,-480.0,0.00021286,2]
[381809263,1756356682650,-480.0,0.00021286,2]
[381809264,1756356682660,-480.0,0.00021286,2]
[381809265,1756356682669,-639.32,0.00021286,2]
[381809266,1756356682678,-480.0,0.00021286,2]
[381809267,1756356682689,-480.0,0.00021286,2]
[381809268,1756356682698,-480.0,0.00021286,2]
[381809269,1756356682708,-480.0,0.00021286,2]
[381809270,1756356682717,-480.0,0.00021286,2]
[381809271,1756356682726,-480.0,0.00021286,2]
[381809272,1756356682736,-480.0,0.00021286,2]
[381809273,1756356682746,-527.37,0.00021286,2]
[381809274,1756356682756,-480.0,0.00021286,2]
[381809275,1756356682765,-480.0,0.00021286,2]
[381809276,1756356682774,-610.89,0.00021286,2]
[381809277,1756356682930,-480.0,0.00021286,2]
[381809278,1756356682939,-480.0,0.00021286,2]
[381809279,1756356682949,-507.04,0.00021286,2]
[381809280,1756356682958,-480.0,0.00021286,2]
[381809281,1756356682967,-480.0,0.00021286,2]
[381809282,1756356682976,-541.0,0.00021286,2]
[381809283,1756356682985,-480.0,0.00021286,2]
[381809284,1756356682994,-480.0,0.00021286,2]
[381809285,1756356683004,-935.42,0.00021286,2]
[381809286,1756356683013,-728.91,0.00021286,2]
[381809287,1756356683022,-480.0,0.00021286,2]
[381809288,1756356683031,-480.0,0.00021286,2]
[381809289,1756356683041,-480.0,0.00021286,2]
[381809290,1756356683050,-480.0,0.00021286,2]
[381809291,1756356683059,-512.28,0.00021286,2]
[381809292,1756356683069,-480.0,0.00021286,2]
[381809293,1756356683078,-480.0,0.00021286,2]
[381809294,1756356683087,-671.05,0.00021286,2]
[381809295,1756356683096,-480.0,0.00021286,2]
[381809296,1756356683106,-480.0,0.00021286,2]
[381809297,1756356683117,-480.0,0.00021286,2]
[381809298,1756356683126,-480.0,0.00021286,2]
[381809299,1756356683135,-480.0,0.00021286,2]
[381809300,1756356683144,-480.0,0.00021286,2]
[381809301,1756356683154,-480.0,0.00021286,2]
[381809302,1756356683163,-528.67,0.00021286,2]
[381809303,1756356683175,-587.59,0.00021286,2]
[381809304,1756356683184,-622.69,0.00021286,2]
[381809305,1756356683194,-706.72,0.00021286,2]
[381809306,1756356683203,-480.0,0.00021286,2]
[381809307,1756356683214,-920.23,0.00021286,2]
[381809308,1756356683224,-480.0,0.00021286,2]
[381809309,1756356683245,-480.0,0.00021286,2]
[381809310,1756356683256,-480.0,0.00021286,2]
[381809311,1756356683277,-480.0,0.00021286,2]
[381809312,1756356683288,-480.0,0.00021286,2]
[381809313,1756356683298,-729.8,0.00021286,2]
[381809314,1756356683307,-480.0,0.00021286,2]
[381809315,1756356683317,-480.0,0.00021286,2]
[381809316,1756356683327,-480.0,0.00021286,2]
[381809317,1756356683337,-1083.02,0.00021286,2]
[381809318,1756356683347,-621.43,0.00021286,2]
[381809319,1756356683357,-480.0,0.00021286,2]
[381809320,1756356683369,-519.69,0.00021286,2]
[381809321,1756356683380,-523.86,0.00021286,2]
[381809322,1756356683390,-561.73,0.00021286,2]
[381809323,1756356683400,-494.37,0.00021286,2]
[381809324,1756356683410,-691.54,0.00021286,2]
[381809325,1756356683420,-480.0,0.00021286,2]
[381809326,1756356683429,-480.0,0.00021286,2]
[381809327,1756356683439,-480.0,0.00021286,2]
[381809328,1756356683450,-492.19,0.00021286,2]
[381809329,1756356683460,-547.88722251,0.00021286,2]
[381809330,1756356683470,-481.89548379,0.00021286,2]
[381809331,1756356683480,-891.36,0.00021286,2]
[381809332,1756356683490,-480.0,0.00021286,2]
[381809333,1756356683500,-683.2,0.00021286,2]
[381809334,1756356683509,-1205.3,0.00021286,2]
[381809335,1756356683520,-220.30247087,0.00021286,2]
[381809336,1756356683531,-641.39,0.00021286,2]
[381809337,1756356683540,-480.0,0.00021286,2]
[381809338,1756356683550,-480.0,0.00021286,2]
[381809339,1756356683561,-480.0,0.00021286,2]
[381809340,1756356683571,-624.84,0.00021286,2]
[381809341,1756356683580,-482.07403029,0.00021286,2]
[381809342,1756356683590,-587.8,0.00021286,2]
[381809343,1756356683600,-348.89396022,0.00021286,2]
[381809344,1756356683610,-480.0,0.00021286,2]
[381809345,1756356683620,-480.0,0.00021286,2]
[381809346,1756356683630,-483.59697002,0.00021286,2]
[381809347,1756356683640,-480.0,0.00021286,2]
[381809348,1756356683650,-508.69,0.00021286,2]
[381809349,1756356683659,-597.29,0.00021286,2]
[381809350,1756356683669,-480.0,0.00021286,2]
[381809351,1756356683678,-656.82,0.00021286,2]
[381809352,1756356683687,-480.0,0.00021286,2]
[381809353,1756356683697,-513.64,0.00021286,2]
[381809354,1756356683706,-555.82,0.00021286,2]
[381809355,1756356683715,-480.0,0.00021286,2]
[381809356,1756356683725,-480.0,0.00021286,2]
[381809357,1756356683735,-480.0,0.00021286,2]
[381809358,1756356683744,-852.11,0.00021286,2]
[381809359,1756356683754,-480.0,0.00021286,2]
[381809360,1756356683763,-664.95,0.00021286,2]
[381809361,1756356683772,-480.0,0.00021286,2]
[381809362,1756356683782,-480.0,0.00021286,2]
[381809363,1756356683792,-480.0,0.00021286,2]
[381809364,1756356683801,-480.0,0.00021286,2]
[381809365,1756356683811,-595.33,0.00021286,2]
[381809366,1756356683820,-480.0,0.00021286,2]
[381809367,1756356683830,-482.25436379,0.00021286,2]
[381809368,1756356683840,-480.0,0.00021286,2]
[381809369,1756356683850,-406.40196478,0.00021286,2]
[381809370,1756356683860,-532.87,0.00021286,2]
[381809371,1756356683871,-857.97,0.00021286,2]
[381809372,1756356683880,-480.0,0.00021286,2]
[381809373,1756356683890,-631.3,0.00021286,2]
[381809374,1756356683900,-480.0,0.00021286,2]
[381809375,1756356683909,-480.0,0.00021286,2]
[381809376,1756356683919,-8091.62,0.00021293,2]
[381809377,1756356683928,-1746.61,0.00021293,2]
[381809378,1756356683938,-6670.63,0.00021293,2]
[381809379,1756356683948,-859.24,0.00021296,2]
[381809380,1756356683958,-1705.38,0.00021296,2]
[381809381,1756356683968,-1694.54,0.00021296,2]
[381809382,1756356683977,-480.0,0.00021296,2]
[381809383,1756356683987,-480.0,0.00021298,2]
[381809384,1756356683996,-480.0,0.00021298,2]
[381809385,1756356684006,-187.0,0.00021308,2]
[381809386,1756356684015,-513.61418658,0.00021321,2]
[381809387,1756356684025,-259.16286579,0.00021321,2]
[381809388,1756356684035,-505.27719589,0.00021321,2]
[381809389,1756356684044,-500.3473098,0.00021321,2]
[381809390,1756356684055,-1004.97425521,0.00021321,2]
[381809391,1756356684064,-1000.0,0.00021321,2]
[381809392,1756356684074,-741.91306403,0.00021346,2]
[381809393,1756356684084,-2964.68460385,0.00021346,2]
[381809394,1756356684093,-452.78750755,0.00021346,2]
[381809395,1756356684103,-862.14,0.00021377,3]
[381809396,1756356684113,-1349.9,0.00021377,3]
[381809397,1756356684123,-674.94,0.00021377,3]
[381809398,1756356684133,-337.48,0.00021377,3]
[381809399,1756356684142,-500.0,0.00021386,2]
[381809400,1756356684151,-536.12,0.00021386,2]
[381809401,1756356684161,-602.26,0.00021386,2]
[381809402,1756356684171,-1007.62,0.00021386,2]
[381809403,1756356684180,-873.01,0.00021386,2]
[381809404,1756356684190,-974.0,0.00021393,2]
[381809405,1756356684199,-638.0,0.00021393,2]
[381809406,1756356684208,-2157.0,0.00021393,2]
[381809407,1756356684218,-151.148,0.00021393,2]
[381809408,1756356684228,-409.0,0.00021393,2]
[381809409,1756356684237,-150.0,0.000214,2]
[381809410,1756356684246,-1000.0,0.000214,2]
[381809411,1756356684256,-150.0,0.000214,2]
[381809412,1756356684266,-647.0,0.000214,2]
[381809413,1756356684276,-2727.86,0.0002141,2]
[381809414,1756356684285,-764.1,0.0002141,2]
[381809415,1756356684295,-1625.43,0.0002141,2]
[381809416,1756356684304,-560.22,0.0002141,2]
[381809417,1756356684314,-523.1950066,0.00021425,2]
[381809418,1756356684324,-500.0,0.00021425,2]
[381809419,1756356684333,-500.0,0.00021425,2]
[381809420,1756356684343,-500.0,0.00021425,2]
[381809421,1756356684353,-500.0,0.00021425,2]
[381809422,1756356684364,-500.0,0.00021425,2]
[381809423,1756356684373,-500.0,0.00021425,2]
[381809424,1756356684383,-500.0,0.00021425,2]
[381809425,1756356684393,-151.0,0.00021425,2]
[381809426,1756356684403,-500.0,0.00021425,2]
[381809427,1756356684413,-151.0,0.00021425,2]
[381809428,1756356684422,-151.0,0.00021425,2]
[381809429,1756356684432,-151.0,0.00021425,2]
[381809430,1756356684442,-636.93517409,0.00021425,2]
[381809431,1756356684452,-1093.0,0.00021425,2]
[381809432,1756356684461,-151.0,0.00021425,2]
[381809433,1756356684471,-151.0,0.00021425,2]
[381809434,1756356684480,-500.0,0.00021425,2]
[381809435,1756356684491,-151.0,0.00021425,2]
[381809436,1756356684501,-500.0,0.00021425,2]
[381809437,1756356684511,-151.0,0.00021425,2]
[381809438,1756356684521,-155.35430345,0.00021425,2]
[381809439,1756356684531,-500.0,0.00021425,2]
[381809440,1756356684541,-500.0,0.00021425,2]
[381809441,1756356684551,-151.84128446,0.00021425,2]
[381809442,1756356684561,-151.0,0.00021425,2]
[381809443,1756356684572,-500.0,0.00021425,2]
[381809444,1756356684582,-500.0,0.00021425,2]
[381809445,1756356684595,-151.0,0.00021425,2]
[381809446,1756356684604,-500.0,0.00021425,2]
[381809447,1756356684614,-500.0,0.00021425,2]
[381809448,1756356684624,-151.0,0.00021425,2]
[381809449,1756356684634,-500.0,0.00021425,2]
[381809450,1756356684644,-151.0,0.00021425,2]
[381809451,1756356684653,-151.0,0.00021425,2]
[381809452,1756356684663,-151.0,0.00021425,2]
[381809453,1756356684672,-326.0,0.00021446,2]
[381809454,1756356684682,-1500.0,0.00021468,2]
[381809455,1756356684692,-1500.0,0.00021468,2]
[381809456,1756356684702,-1500.0,0.00021468,2]
[381809457,1756356684712,-1500.0,0.00021468,2]
[381809458,1756356684722,-1500.0,0.00021468,2]
[381809459,1756356684731,-460.70241166,0.00021468,2]
[381809460,1756356684741,-1500.0,0.00021468,2]
[381809461,1756356684750,-1003.32526424,0.00021468,2]
[381809462,1756356684760,-1500.0,0.00021468,2]
[381809463,1756356684771,-1500.0,0.00021468,2]
[381809464,1756356684780,-1500.0,0.00021468,2]